bitfinex-derivatives/quotes_ETHF0:USTF0_20250420
["timestamp","ask_amount","ask_price","bid_price","bid_amount"]
[1745125422500,2.228,1614.7,1614.6,4.11056508]
[1745125422707,2.228,1614.7,1614.6,4.11050437]
[1745125423095,5.13149,1615.0,1614.9,1.23856]
[1745125423300,5.13148,1615.0,1614.9,1.23856]
[1745125423703,6.87808,1615.0,1614.9,1.23856]
[1745125424001,6.87808,1615.0,1614.9,2.95596]
[1745125424204,9.10608,1615.0,1614.9,2.95596]
[1745125426306,7.8676,1615.0,1614.9,2.95596]
[1745125427201,9.10608,1615.0,1614.9,2.95596]
[1745125430702,7.8676,1615.0,1614.9,2.95596]
[1745125431507,3.9746,1615.0,1614.9,2.95596]
[1745125431704,7.8676,1615.0,1614.9,2.95596]
[1745125432202,9.10608,1615.0,1614.9,2.95596]
[1745125433702,7.35948,1615.0,1614.9,2.95596]
[1745125433906,6.121,1615.0,1614.9,3.78366]
[1745125436106,2.228,1615.0,1614.9,3.78366]
[1745125436308,11.41887,1615.2,1615.1,1.23841]
[1745125436802,13.05137,1615.2,1615.1,1.23841]
[1745125437004,13.05137,1615.2,1615.1,2.92651]
[1745125440014,9.84357,1615.2,1615.1,2.92651]
[1745125440211,13.05137,1615.2,1615.1,2.92651]
[1745125451014,11.813,1615.2,1614.9,0.8277]
[1745125451221,1.23856,1614.9,1614.8,1.23857]
[1745125451412,7.0998,1614.9,1614.5,11.46424907]
[1745125451617,1.23879,1614.7,1614.6,1.23878]
[1745125452114,5.15699,1614.7,1614.6,1.23878]
[1745125458123,5.15691,1614.7,1614.6,1.23878]
[1745125458327,3.9182,1614.7,1614.6,2.90838]
[1745125459024,5.15691,1614.7,1614.6,2.90838]
[1745125460422,5.15691,1614.7,1614.6,3.73238]
[1745125470235,3.46671,1614.7,1614.6,3.73238]
[1745125475540,7.35971,1614.7,1614.6,3.73238]
[1745125477744,6.121,1614.7,1614.6,3.73238]
[1745125479445,7.35971,1614.7,1614.6,3.73238]
[1745125480937,8.99411,1614.7,1614.6,3.73238]
[1745125490666,8.99411,1614.7,1614.6,2.90838]
[1745125497166,6.76611,1614.7,1614.6,2.90838]
[1745125498167,8.99411,1614.7,1614.6,2.90838]
[1745125504076,10.9632,1614.7,1614.4,11.46424907]
[1745125504372,3.68565,1614.6,1614.5,1.23887]
[1745125504675,1.23887,1614.5,1614.4,11.18142907]
[1745125504858,1.23887,1614.5,1614.4,9.49532907]
[1745125505266,2.228,1614.5,1614.4,9.49532907]
[1745125506271,3.46687,1614.5,1614.4,9.49532907]
[1745125507174,1.23887,1614.5,1614.4,9.49532907]
[1745125508172,3.46687,1614.5,1614.4,9.49532907]
[1745125509173,1.23887,1614.5,1614.4,1.23888]
[1745125512176,3.46687,1614.5,1614.4,1.23888]
[1745125512768,5.19127,1614.5,1614.4,1.23888]
[1745125515374,5.19127,1614.5,1614.4,2.94408]
[1745125515569,8.39907,1614.5,1614.4,2.94408]
[1745125515770,5.19127,1614.5,1614.4,2.94408]
[1745125521174,2.96327,1614.5,1614.4,2.94408]
[1745125522181,5.19127,1614.5,1614.4,2.94408]
[1745125525769,5.19127,1614.5,1614.4,1.7052]
[1745125526079,1.23894,1614.4,1614.3,2.96996]
[1745125526279,3.81724,1614.4,1614.3,2.96996]
[1745125527083,6.04524,1614.4,1614.3,2.96996]
[1745125529884,6.04524,1614.4,1614.3,2.09366]
[1745125530080,1.23902,1614.3,1614.2,3.75205]
[1745125530387,2.96792,1614.3,1614.2,3.75205]
[1745125531089,5.19592,1614.3,1614.2,3.75205]
[1745125541184,2.96792,1614.3,1614.2,3.75205]
[1745125543195,1.23902,1614.3,1614.2,3.75205]
[1745125547806,1.23902,1614.3,1614.2,1.23905]
[1745125548101,5.20912,1614.3,1614.2,2.83205]
[1745125549399,5.20912,1614.3,1614.2,3.70545]
[1745125550104,2.98112,1614.3,1614.2,3.70545]
[1745125551101,5.20912,1614.3,1614.2,3.70545]
[1745125552202,3.9701,1614.3,1614.2,3.70545]
[1745125552704,5.20912,1614.3,1614.2,3.70545]
[1745125555001,3.9701,1614.3,1614.2,3.70545]
[1745125555204,1.7421,1614.3,1614.2,3.70545]
[1745125558109,3.9701,1614.3,1614.2,3.70545]
[1745125558510,5.20912,1614.3,1614.2,3.70545]
[1745125559213,1.7421,1614.3,1614.2,3.70545]
[1745125561112,3.9701,1614.3,1614.2,3.70545]
[1745125563315,1.7421,1614.3,1614.2,3.70545]
[1745125566615,2.98112,1614.3,1614.2,3.70545]
[1745125567319,2.98112,1614.3,1614.2,1.593]
[1745125567512,1.23917,1614.1,1614.0,8.25644907]
[1745125567708,5.13217,1614.1,1614.0,8.25644907]
[1745125568214,9.87857,1614.1,1614.0,8.25644907]
[1745125568916,9.87857,1614.1,1614.0,9.49569907]
[1745125569918,9.87857,1614.1,1614.0,8.25644907]
[1745125570621,1.23925,1614.0,1613.9,2.88016]
[1745125570809,2.98725,1614.0,1613.9,2.88016]
[1745125571011,3.84065,1614.0,1613.9,2.88016]
[1745125571212,6.06865,1614.0,1613.9,2.88016]
[1745125571413,4.8294,1614.0,1613.9,2.88016]
[1745125571721,6.06865,1614.0,1613.9,2.88016]
[1745125573017,2.228,1614.0,1613.9,2.88016]
[1745125575329,3.46725,1614.0,1613.9,2.88016]
[1745125577133,5.17205,1614.0,1613.9,2.88016]
[1745125577427,6.00035,1614.0,1613.9,2.88016]
[1745125578626,4.7611,1614.0,1613.9,2.88016]
[1745125580330,3.9328,1614.0,1613.9,2.88016]
[1745125580830,2.228,1614.0,1613.9,2.88016]
[1745125582926,2.228,1614.0,1613.8,4.8654]
[1745125582927,1.23933,1613.9,1613.8,4.8654]
[1745125583232,5.10653,1613.9,1613.8,4.8654]
[1745125584134,5.10653,1613.9,1613.8,6.10481]
[1745125586633,3.2078,1614.5,1614.4,1.23894]
[1745125586934,7.1008,1614.5,1614.4,1.23894]
[1745125587126,9.3288,1614.5,1614.4,1.23894]
[1745125587324,7.3599,1614.5,1614.4,1.23894]
[1745125587728,1.23894,1614.4,1614.3,1.6797]
[1745125588033,2.96544,1614.4,1614.3,1.6797]
[1745125588234,6.06494,1614.4,1614.3,1.6797]
[1745125588831,6.06494,1614.4,1614.3,2.91872]
[1745125594340,5.19344,1614.4,1614.3,2.91872]
[1745125594538,3.46694,1614.4,1614.3,2.91872]
[1745125596035,5.05924,1614.4,1614.3,2.91872]
[1745125598145,3.46694,1614.4,1614.3,2.91872]
[1745125598338,2.228,1614.4,1614.3,2.91872]
[1745125598546,3.46694,1614.4,1614.3,2.91872]
[1745125598737,2.228,1614.4,1614.3,2.91872]
[1745125599139,3.46694,1614.4,1614.3,2.91872]
[1745125601046,5.19064,1614.4,1614.3,2.91872]
[1745125608245,5.19064,1614.4,1614.3,1.6797]
[1745125608539,9.27164,1614.4,1614.3,1.6797]
[1745125611647,6.06384,1614.4,1614.3,1.6797]
[1745125612248,1.23917,1614.1,1614.0,1.23922]
[1745125612451,1.23917,1614.1,1614.0,2.94922]
[1745125612948,4.69897,1614.1,1614.0,2.94922]
[1745125613150,6.92697,1614.1,1614.0,2.94922]
[1745125616452,6.92697,1614.1,1614.0,1.71]
[1745125622654,1.23925,1614.0,1613.9,1.681]
[1745125622855,1.23938,1613.9,1613.8,2.88785]
[1745125623158,3.46738,1613.9,1613.8,2.88785]
[1745125625158,7.36038,1613.9,1613.8,2.88785]
[1745125625857,6.121,1613.9,1613.8,2.88785]
[1745125626261,7.36033,1613.9,1613.8,2.88785]
[1745125627962,6.121,1613.9,1613.8,2.88785]
[1745125628162,7.36033,1613.9,1613.8,2.88785]
[1745125633767,8.20643,1613.9,1613.8,2.88785]
[1745125648270,8.20643,1613.9,1613.7,2.89975]
[1745125648271,1.23941,1613.8,1613.7,2.89975]
[1745125648469,1.23941,1613.8,1613.7,5.03082969]
[1745125649077,3.46741,1613.8,1613.7,5.03082969]
[1745125649777,3.46741,1613.8,1613.7,5.03088383]
[1745125651877,3.46741,1613.8,1613.7,5.03085524]
[1745125652278,3.46741,1613.8,1613.7,5.03090304]
[1745125653481,3.46741,1613.8,1613.7,5.03093304]
[1745125653681,3.46741,1613.8,1613.7,5.0310127]
[1745125655481,3.46741,1613.8,1613.7,5.03097276]
[1745125657383,3.46741,1613.8,1613.7,4.59448]
[1745125661086,3.46741,1613.8,1613.7,2.5028]
[1745125661393,1.23956,1613.6,1613.5,8.25644907]
[1745125661586,5.13356,1613.6,1613.5,8.25644907]
[1745125661978,6.71806,1613.6,1613.5,8.25644907]
[1745125662178,8.94606,1613.6,1613.5,8.25644907]
[1745125663888,1.23971,1613.4,1613.3,0.7933]
[1745125664187,3.46771,1613.4,1613.3,0.7933]
[1745125664683,5.07651,1613.4,1613.3,0.7933]
[1745125665489,1.23979,1613.3,1613.2,22.23633998]
[1745125666091,3.46779,1613.3,1613.2,22.23633998]
[1745125667090,3.46779,1613.3,1613.2,23.47620998]
[1745125668084,3.46779,1613.3,1613.2,22.23633998]
[1745125668288,4.26519,1613.3,1613.2,22.23633998]
[1745125668494,4.26519,1613.3,1613.2,1.6172]
[1745125670496,8.15919,1613.3,1613.2,1.6172]
[1745125672391,8.15919,1613.3,1613.2,2.85707]
[1745125672593,8.15919,1613.3,1613.2,1.6172]
[1745125672788,7.36179,1613.3,1613.2,2.85707]
[1745125672992,6.122,1613.3,1613.2,2.85707]
[1745125673194,11.04168,1613.5,1613.4,1.23971]
[1745125673794,11.04168,1613.5,1613.4,4.52491]
[1745125674093,13.26968,1613.5,1613.4,4.52491]
[1745125675196,7.36168,1613.5,1613.4,4.52491]
[1745125676595,7.36168,1613.5,1613.4,3.2852]
[1745125677500,7.36168,1613.5,1613.4,4.52491]
[1745125677699,7.36168,1613.5,1613.4,3.2852]
[1745125678300,7.36168,1613.5,1613.4,4.52491]
[1745125685503,12.21417,1613.9,1613.4,7.73271]
[1745125685803,3.894,1613.8,1613.7,1.23943]
[1745125686006,3.894,1613.8,1613.7,3.82803]
[1745125686202,6.122,1613.8,1613.7,3.82803]
[1745125688209,3.894,1613.8,1613.7,3.82803]
[1745125688711,6.77982,1614.0,1613.8,1.23935]
[1745125688909,1.23933,1613.9,1613.8,2.97335]
[1745125689907,1.23941,1613.8,1613.7,2.07736]
[1745125690103,1.23941,1613.8,1613.7,3.81136]
[1745125690509,3.74161,1613.8,1613.7,3.81136]
[1745125691212,5.96961,1613.8,1613.7,3.81136]
[1745125692510,4.7302,1613.8,1613.7,3.81136]
[1745125693110,5.96961,1613.8,1613.7,2.5719]
[1745125693516,4.7302,1613.8,1613.7,3.81138]
[1745125693816,5.96961,1613.8,1613.7,3.81138]
[1745125695107,4.7302,1613.8,1613.7,3.81138]
[1745125695308,2.228,1613.8,1613.7,3.81138]
[1745125699112,3.46741,1613.8,1613.7,3.4163]
[1745125699315,2.228,1613.8,1613.7,4.65578]
[1745125699516,5.21751,1613.8,1613.7,4.65578]
[1745125700927,2.228,1613.8,1613.7,4.65578]
[1745125701809,3.46741,1613.8,1613.7,4.65578]
[1745125702518,2.228,1613.8,1613.7,4.65578]
[1745125703224,5.13327,1614.0,1613.9,1.23933]
[1745125704126,7.36127,1614.0,1613.9,1.23933]
[1745125704326,7.36127,1614.0,1613.9,2.94233]
[1745125704824,6.122,1614.0,1613.9,2.94233]
[1745125705416,2.228,1614.0,1613.9,4.69473]
[1745125705620,1.108,1614.0,1613.9,9.69473]
[1745125705825,1.108,1614.0,1613.9,10.12991692]
[1745125706127,9.802,1614.4,1613.9,13.11858692]
[1745125706435,5.13297,1614.4,1614.3,1.23902]
[1745125706731,6.84107,1614.4,1614.3,1.23902]
[1745125707325,9.06907,1614.4,1614.3,1.23902]
[1745125707917,9.06907,1614.4,1614.3,2.83912]
[1745125710335,7.8301,1614.4,1614.3,2.83912]
[1745125711036,6.122,1614.4,1614.3,2.83912]
[1745125711932,2.228,1614.4,1614.3,2.83912]
[1745125712329,2.228,1614.5,1614.4,1.23894]
[1745125715523,2.228,1614.5,1614.4,4.44674]
[1745125715725,2.228,1614.5,1614.4,5.29464]
[1745125717235,5.908,1614.7,1614.6,1.23879]
[1745125717426,3.93464,1614.8,1614.7,1.23871]
[1745125717731,0.04164,1614.8,1614.7,3.78591]
[1745125718237,2.26964,1614.8,1614.7,3.78591]
[1745125723935,2.228,1614.8,1614.7,3.78591]
[1745125729339,4.709,1615.0,1614.9,1.23856]
[1745125729937,6.3823,1615.0,1614.9,2.87996]
[1745125730138,9.84878,1615.0,1614.9,2.87996]
[1745125730441,8.6103,1615.0,1614.9,2.87996]
[1745125730942,9.84878,1615.0,1614.9,2.87996]
[1745125740753,9.84878,1615.0,1614.9,1.6414]
[1745125742053,9.84878,1615.0,1614.9,2.87996]
[1745125743853,9.84878,1615.0,1614.9,3.67726]
[1745125744553,9.03278,1615.0,1614.9,3.67726]
[1745125748155,7.35948,1615.0,1614.9,3.67726]
[1745125749755,3.46648,1615.0,1614.9,3.67726]
[1745125750348,2.228,1615.0,1614.9,16.22918455]
[1745125750653,2.228,1615.0,1614.9,18.22918455]
[1745125750859,2.228,1615.0,1614.9,18.22911626]
[1745125751161,3.3423,1615.5,1615.3,1.23822]
[1745125751362,1.23818,1615.4,1615.3,1.23822]
[1745125751956,2.87388,1615.4,1615.3,2.92162]
[1745125752258,2.228,1615.4,1615.3,6.12942]
[1745125752570,2.228,1615.4,1615.3,6.93072]
[1745125753058,1.6357,1615.6,1615.3,5.6925]
[1745125753250,2.87372,1615.6,1615.5,1.2381]
[1745125753957,1.6357,1615.6,1615.5,1.2381]
[1745125754157,3.8637,1615.6,1615.5,1.2381]
[1745125754961,5.10172,1615.6,1615.5,1.2381]
[1745125756666,3.8637,1615.6,1615.5,1.2381]
[1745125758067,5.10172,1615.6,1615.5,1.2381]
[1745125758254,5.10172,1615.6,1615.5,2.0545]
[1745125758567,3.8637,1615.6,1615.5,2.0545]
[1745125759269,5.10172,1615.6,1615.5,2.0545]
[1745125759467,3.8637,1615.6,1615.5,2.0545]
[1745125765165,3.8637,1615.6,1615.5,2.8811]
[1745125766064,2.228,1615.6,1615.5,2.8811]
[1745125769175,3.9471,1615.6,1615.5,2.8811]
[1745125770677,2.228,1615.6,1615.5,2.8811]
[1745125771873,2.228,1615.6,1615.5,6.0889]
[1745125773990,2.228,1615.6,1615.5,2.8811]
[1745125774282,2.228,1615.6,1615.5,6.0889]
[1745125775581,2.228,1615.6,1615.5,2.8811]
[1745125775879,2.228,1615.6,1615.5,6.0889]
[1745125777284,1.6192,1615.8,1615.7,1.23795]
[1745125778081,3.8472,1615.8,1615.7,1.23795]
[1745125783485,5.08507,1615.8,1615.7,1.23795]
[1745125803699,1.23795,1615.7,1615.6,2.83529]
[1745125803896,7.01625,1615.7,1615.6,2.83529]
[1745125804198,9.24425,1615.7,1615.6,2.83529]
[1745125804696,6.03645,1615.7,1615.6,2.83529]
[1745125806202,4.7985,1615.7,1615.6,2.83529]
[1745125806396,6.03645,1615.7,1615.6,2.83529]
[1745125806596,3.46595,1615.7,1615.6,2.83529]
[1745125808502,2.228,1615.7,1615.6,2.83529]
[1745125809803,3.46595,1615.7,1615.6,2.83529]
[1745125810798,4.32965,1615.7,1615.6,1.5973]
[1745125811402,7.53745,1615.7,1615.6,2.83532]
[1745125811796,1.2381,1615.5,1615.4,9.49457907]
[1745125812104,3.4661,1615.5,1615.4,9.49457907]
[1745125812505,6.0664,1615.5,1615.4,9.49457907]
[1745125813801,2.228,1615.5,1615.4,11.19057907]
[1745125814904,2.228,1615.5,1615.4,14.39837907]
[1745125816206,2.228,1615.5,1615.4,6.14193]
[1745125818109,2.228,1615.5,1615.4,2.93413]
[1745125827114,2.5404,1615.6,1615.5,1.2381]
[1745125827305,2.5404,1615.6,1615.5,2.9604]
[1745125828312,4.7684,1615.6,1615.5,2.9604]
[1745125848525,4.7684,1615.6,1615.5,3.7872]
[1745125851430,6.00642,1615.6,1615.5,3.7872]
[1745125851632,4.7684,1615.6,1615.5,3.7872]
[1745125857534,3.9528,1615.6,1615.5,3.7872]
[1745125858028,2.228,1615.6,1615.5,3.7872]
[1745125869930,3.8095,1615.6,1615.5,3.7872]
[1745125883144,5.04752,1615.6,1615.5,3.7872]
[1745125883350,1.2381,1615.5,1615.4,4.44592]
[1745125883548,2.595,1615.5,1615.4,4.44592]
[1745125884049,4.823,1615.5,1615.4,4.44592]
[1745125885046,4.823,1615.5,1615.4,1.23812]
[1745125888045,4.823,1615.5,1615.4,2.85182]
[1745125888445,4.823,1615.5,1615.4,3.72922]
[1745125896554,2.228,1615.5,1615.4,3.72922]
[1745125910162,2.5257,1615.6,1615.5,1.2381]
[1745125910463,2.5257,1615.6,1615.5,2.9601]
[1745125911162,4.7537,1615.6,1615.5,2.9601]
[1745125912063,4.7537,1615.6,1615.5,3.8355]
[1745125926089,2.228,1615.6,1615.5,3.8355]
[1745125937493,3.9698,1615.6,1615.5,3.8355]
[1745125949705,5.20782,1615.6,1615.5,1.2381]
[1745125956305,5.20782,1615.6,1615.4,1.23812]
[1745125956502,2.5907,1615.5,1615.4,1.23812]
[1745125956711,3.4538,1615.5,1615.4,1.67445231]
[1745125957201,5.6818,1615.5,1615.4,1.67445231]
[1745125957504,5.6818,1615.5,1615.4,3.38785231]
[1745125958600,5.6818,1615.5,1615.4,3.38784461]
[1745125959413,2.228,1615.5,1615.4,3.38784461]
[1745125962406,2.228,1615.5,1615.4,3.3878359]
[1745125964216,2.228,1615.5,1615.4,3.38783371]
[1745125968218,3.4661,1615.5,1615.4,1.7134]
[1745125968416,1.23818,1615.4,1615.3,20.61913998]
[1745125968612,2.84428,1615.4,1615.3,20.61913998]
[1745125969117,5.07228,1615.4,1615.3,20.61913998]
[1745125969520,5.07228,1615.4,1615.3,8.25644907]
[1745125972524,3.8341,1615.4,1615.3,9.49469907]
[1745125973120,3.8341,1615.4,1615.3,1.23825]
[1745125973323,3.8341,1615.4,1615.3,2.87625]
[1745125974011,5.07228,1615.4,1615.3,2.87625]
[1745125974815,5.07228,1615.4,1615.3,1.638]
[1745125978308,5.07228,1615.4,1615.3,2.87625]
[1745125979117,5.07228,1615.4,1615.3,1.638]
[1745125984121,5.07228,1615.4,1615.3,2.87625]
[1745125985533,5.07228,1615.4,1615.3,1.638]
[1745125987031,1.23825,1615.3,1615.2,1.23828]
[1745125987226,6.81995,1615.3,1615.2,1.23828]
[1745125987532,6.81995,1615.3,1615.2,2.94478]
[1745125993337,6.81995,1615.3,1615.2,1.7065]
[1745125993536,6.81995,1615.3,1615.2,2.94483]
[1745125996535,2.228,1615.3,1615.2,2.94483]
[1745126005542,2.228,1615.3,1615.2,3.38124535]
[1745126006242,8.47397,1615.5,1615.3,1.23823]
[1745126006448,8.47397,1615.5,1615.3,4.65633]
[1745126006449,1.23818,1615.4,1615.3,4.65633]
[1745126006649,1.23818,1615.4,1615.3,3.4181]
[1745126006854,2.86338,1615.4,1615.3,3.4181]
[1745126007350,5.09138,1615.4,1615.3,3.4181]
[1745126007553,5.09138,1615.4,1615.3,4.65635]
[1745126019544,5.09138,1615.4,1615.3,3.4181]
[1745126020854,2.228,1615.4,1615.3,4.65635]
[1745126021162,5.908,1615.6,1615.3,3.85445143]
[1745126021354,5.908,1615.6,1615.4,2.95836]
[1745126021355,7.14608,1615.6,1615.4,2.95836]
[1745126021556,7.14608,1615.6,1615.5,2.5415]
[1745126021853,7.14608,1615.6,1615.5,3.3946]
[1745126022260,9.37408,1615.6,1615.5,3.3946]
[1745126026967,3.46608,1615.6,1615.5,3.3946]
[1745126028466,3.46608,1615.6,1615.5,4.6327]
[1745126028769,3.46608,1615.6,1615.5,3.3946]
[1745126033677,5.05938,1615.6,1615.5,3.3946]
[1745126034477,9.06568,1615.6,1615.5,3.3946]
[1745126035168,5.85788,1615.6,1615.5,1.7202]
[1745126039578,5.85788,1615.6,1615.5,2.5357]
[1745126049487,5.85788,1615.6,1615.5,1.7202]
[1745126051588,4.6198,1615.6,1615.3,5.2955]
[1745126051783,1.23818,1615.4,1615.3,7.8584]
[1745126051988,3.77476,1615.5,1615.4,1.7391]
[1745126053086,6.00276,1615.5,1615.4,1.7391]
[1745126066099,5.17986,1615.5,1615.4,1.7391]
[1745126066298,5.17986,1615.5,1615.4,2.97728]
[1745126066497,5.17986,1615.5,1615.4,1.7391]
[1745126066801,3.9417,1615.5,1615.4,2.97728]
[1745126068100,5.1798,1615.5,1615.4,2.97728]
[1745126070099,3.4661,1615.5,1615.4,2.97728]
[1745126070491,3.4661,1615.5,1615.4,1.7391]
[1745126072099,3.4661,1615.5,1615.4,2.97728]
[1745126073400,2.228,1615.5,1615.4,2.97728]
[1745126074110,4.44588,1615.6,1615.4,2.97728]
[1745126074299,4.44588,1615.6,1615.5,2.5415]
[1745126074487,4.44588,1615.6,1615.5,3.4108]
[1745126075102,8.29738,1615.6,1615.5,3.4108]
[1745126075398,9.11548,1615.6,1615.5,3.4108]
[1745126081003,9.96498,1615.6,1615.5,3.4108]
[1745126082106,6.75718,1615.6,1615.5,3.4108]
[1745126084294,9.96498,1615.6,1615.5,3.4108]
[1745126084895,6.75718,1615.6,1615.5,3.4108]
[1745126088408,1.23818,1615.4,1615.3,1.2382]
[1745126088604,1.23818,1615.4,1615.3,3.674]
[1745126089110,3.46618,1615.4,1615.3,3.674]
[1745126092908,4.26838,1615.4,1615.3,3.674]
[1745126093411,3.0302,1615.4,1615.3,3.674]
[1745126094110,0.8022,1615.4,1615.3,3.674]
[1745126095408,3.0302,1615.4,1615.3,3.674]
[1745126095610,2.228,1615.4,1615.3,3.674]
[1745126096916,3.46618,1615.4,1615.3,3.674]
[1745126097114,1.23818,1615.4,1615.3,3.674]
[1745126098513,3.72586,1615.5,1615.3,3.674]
[1745126098716,3.72586,1615.5,1615.4,1.7313]
[1745126099117,5.95386,1615.5,1615.4,1.7313]
[1745126100018,5.07906,1615.5,1615.4,1.7313]
[1745126100319,5.07906,1615.5,1615.4,2.5496]
[1745126103021,3.46616,1615.5,1615.4,2.5496]
[1745126106731,2.228,1615.5,1615.4,3.78778]
[1745126106930,3.4661,1615.5,1615.4,3.78778]
[1745126107431,3.4661,1615.5,1615.4,2.5496]
[1745126107722,2.228,1615.5,1615.4,3.78778]
[1745126107923,3.4661,1615.5,1615.4,2.5496]
[1745126108422,3.4661,1615.5,1615.4,3.78778]
[1745126109333,3.4661,1615.5,1615.4,2.5496]
[1745126113148,5.1411,1615.5,1615.4,2.5496]
[1745126119955,5.1411,1615.5,1615.4,3.78778]
[1745126120258,5.1411,1615.5,1615.4,2.5496]
[1745126122558,5.1411,1615.5,1615.4,3.78778]
[1745126122758,5.1411,1615.5,1615.4,2.5496]
[1745126123060,5.1411,1615.5,1615.4,3.78778]
[1745126123861,5.1411,1615.5,1615.4,2.5496]
[1745126124054,5.1411,1615.5,1615.4,3.78778]
[1745126124055,2.228,1615.5,1615.4,3.78778]
[1745126125163,5.12601,1615.7,1615.5,1.23806]
[1745126125362,5.12601,1615.7,1615.6,2.4507]
[1745126125860,2.91419,1615.8,1615.6,2.4507]
[1745126126159,5.14219,1615.8,1615.6,3.68866]
[1745126126352,5.14219,1615.8,1615.7,2.4485]
[1745126127967,1.23795,1615.7,1615.6,0.8443]
[1745126128165,5.87755,1615.7,1615.6,0.8443]
[1745126129165,5.87755,1615.7,1615.6,2.467]
[1745126130465,9.08535,1615.7,1615.6,2.467]
[1745126130765,9.08535,1615.7,1615.6,1.6227]
[1745126130961,7.8474,1615.7,1615.3,8.25644907]
[1745126131164,1.23818,1615.4,1615.3,8.25644907]
[1745126131550,14.73248,1615.4,1615.3,8.25644907]
[1745126132166,16.96048,1615.4,1615.3,8.25644907]
[1745126132559,16.96048,1615.4,1615.3,0.45244907]
[1745126134169,1.23841,1615.1,1614.9,1.6669]
[1745126134369,0.7914,1615.0,1614.9,1.6669]
[1745126134571,2.4182,1615.0,1614.9,1.6669]
[1745126134859,3.2522,1615.0,1614.9,1.6669]
[1745126135260,5.4802,1615.0,1614.9,1.6669]
[1745126137879,5.4802,1615.0,1614.9,2.90546]
[1745126138665,3.8548,1615.0,1614.9,2.90546]
[1745126138869,2.228,1615.0,1614.9,2.90546]
[1745126142471,2.228,1615.0,1614.9,1.6669]
[1745126142871,3.46648,1615.0,1614.9,1.6669]
[1745126143474,3.46648,1615.0,1614.9,2.90546]
[1745126144776,2.228,1615.0,1614.9,2.90546]
[1745126145383,3.46648,1615.0,1614.9,1.6669]
[1745126146974,2.228,1615.0,1614.9,2.90546]
[1745126148079,3.46648,1615.0,1614.9,2.90546]
[1745126150377,2.228,1615.0,1614.9,2.90546]
[1745126152081,2.228,1615.0,1614.9,3.77746]
[1745126154173,3.46648,1615.0,1614.9,3.77746]
[1745126154374,2.228,1615.0,1614.9,3.77746]
[1745126156280,3.46648,1615.0,1614.9,3.77746]
[1745126156483,3.46648,1615.0,1614.9,2.5389]
[1745126156972,4.28898,1615.0,1614.9,2.5389]
[1745126159081,4.28898,1615.0,1614.9,1.6669]
[1745126159281,1.23856,1614.9,1614.8,1.7497]
[1745126159485,2.92376,1614.9,1614.8,3.5011]
[1745126160179,5.15176,1614.9,1614.8,3.5011]
[1745126160973,1.23871,1614.7,1614.5,4.4466]
[1745126161173,1.23871,1614.7,1614.6,3.3311]
[1745126161671,2.10871,1614.7,1614.6,3.3311]
[1745126162078,4.33671,1614.7,1614.6,3.3311]
[1745126163578,6.05301,1614.7,1614.6,3.3311]
[1745126164183,2.228,1614.7,1614.6,4.56989]
[1745126165189,4.44644,1614.8,1614.6,4.56989]
[1745126165382,4.44644,1614.8,1614.7,1.7469]
[1745126165882,6.05174,1614.8,1614.7,1.7469]
[1745126166081,8.27974,1614.8,1614.7,1.7469]
[1745126170389,1.23879,1614.7,1614.4,2.90039]
[1745126170689,3.85759,1614.7,1614.4,4.49679]
[1745126170889,3.85759,1614.7,1614.5,1.5964]
[1745126171190,6.08559,1614.7,1614.5,1.5964]
[1745126171690,1.23879,1614.6,1614.5,1.5964]
[1745126172777,1.7528,1614.6,1614.3,4.44675]
[1745126172984,1.23894,1614.4,1614.3,4.8042]
[1745126173186,0.866,1614.5,1614.3,6.9039]
[1745126173385,2.4937,1614.5,1614.3,6.9039]
[1745126173585,3.73257,1614.5,1614.4,1.5923]
[1745126174095,5.96057,1614.5,1614.4,1.5923]
[1745126180987,4.7217,1614.5,1614.4,1.5923]
[1745126181193,2.228,1614.5,1614.4,2.83124]
[1745126181393,2.228,1614.5,1614.4,3.69944]
[1745126182099,8.34165,1614.6,1614.4,3.69944]
[1745126182298,8.34165,1614.6,1614.5,1.7389]
[1745126182489,8.34165,1614.6,1614.5,2.5958]
[1745126183198,10.56965,1614.6,1614.5,2.5958]
[1745126186600,7.36185,1614.6,1614.5,2.5958]
[1745126188394,7.36185,1614.6,1614.5,3.83467]
[1745126188902,7.36185,1614.6,1614.5,2.5958]
[1745126189501,7.36185,1614.6,1614.5,3.83467]
[1745126189697,6.123,1614.6,1614.5,3.83467]
[1745126190004,2.228,1614.6,1614.5,3.83467]
[1745126190302,9.1158,1614.7,1614.6,1.23879]
[1745126190492,9.1158,1614.7,1614.6,2.92669]
[1745126191803,3.2078,1614.7,1614.6,2.92669]
[1745126215914,4.8595,1614.8,1614.7,1.23871]
[1745126216108,4.8595,1614.8,1614.7,2.92081]
[1745126217320,6.09814,1614.8,1614.7,2.92081]
[1745126218623,4.8595,1614.8,1614.7,2.92081]
[1745126223025,1.6517,1614.8,1614.7,2.92081]
[1745126223330,1.6459,1614.9,1614.8,1.23864]
[1745126223625,1.6459,1614.9,1614.8,4.52054]
[1745126227128,3.8739,1614.9,1614.8,4.52054]
[1745126228128,1.6459,1614.9,1614.8,4.52054]
[1745126231231,3.8739,1614.9,1614.8,4.52054]
[1745126231625,2.228,1614.9,1614.8,4.52054]